[Event "Titled Tuesday Blitz November 08 Late 2022"]
[White "Myers, Dominique"]
[Black "Kovacevic, Radmila"]
[WhiteFideId "2041715"]
[BlackFideId "933171"]
[WhiteElo "1986"]
[BlackElo "2208"]
[Result "1-0"]
[Round "11"]
[TimeControl "180+1"]
[Date "2022.11.09"]
[WhiteClock "0:01:23"]
[BlackClock "0:00:02"]

1. e4 {[%clk 0:03:00]}  e5 {[%clk 0:03:00]} 2. Nf3 {[%clk 0:02:55]}  f5 {[%clk 0:03:00]} 3. Nxe5 {[%clk 0:02:53]}  Qf6 {[%clk 0:03:00]} 4. d4 {[%clk 0:02:52]}  d6 {[%clk 0:03:00]} 5. Nc4 {[%clk 0:02:51]}  fxe4 {[%clk 0:03:00]} 6. Nc3 {[%clk 0:02:50]}  Qg6 {[%clk 0:03:01]} 7. Qe2 {[%clk 0:02:46]}  Nf6 {[%clk 0:02:59]} 8. h3 {[%clk 0:02:43]}  Be7 {[%clk 0:02:57]} 9. g4 {[%clk 0:02:43]}  Nc6 {[%clk 0:02:47]} 10. Be3 {[%clk 0:02:41]}  d5 {[%clk 0:02:44]} 11. Ne5 {[%clk 0:02:39]}  Nxe5 {[%clk 0:02:31]} 12. dxe5 {[%clk 0:02:40]}  Nxg4 {[%clk 0:02:27]} 13. hxg4 {[%clk 0:02:39]}  Bxg4 {[%clk 0:02:27]} 14. Qb5+ {[%clk 0:02:38]}  c6 {[%clk 0:02:24]} 15. Qxb7 {[%clk 0:02:37]}  Rd8 {[%clk 0:02:05]} 16. Qxc6+ {[%clk 0:02:36]}  Qxc6 {[%clk 0:02:03]} 17. Bb5 {[%clk 0:02:34]}  Bd7 {[%clk 0:01:46]} 18. Bxc6 {[%clk 0:02:30]}  Bxc6 {[%clk 0:01:47]} 19. O-O-O {[%clk 0:02:26]}  a6 {[%clk 0:01:42]} 20. Rhg1 {[%clk 0:02:14]}  g6 {[%clk 0:01:32]} 21. Ne2 {[%clk 0:02:13]}  O-O {[%clk 0:01:27]} 22. Nd4 {[%clk 0:02:13]}  Bd7 {[%clk 0:01:21]} 23. Nb3 {[%clk 0:02:11]}  Rf5 {[%clk 0:01:13]} 24. Rxd5 {[%clk 0:02:09]}  Be6 {[%clk 0:01:04]} 25. Rxd8+ {[%clk 0:02:07]}  Bxd8 {[%clk 0:01:05]} 26. Nd4 {[%clk 0:02:07]}  Rxe5 {[%clk 0:01:03]} 27. Nxe6 {[%clk 0:02:04]}  Rxe6 {[%clk 0:01:04]} 28. Rd1 {[%clk 0:02:04]}  Be7 {[%clk 0:01:00]} 29. c4 {[%clk 0:02:01]}  g5 {[%clk 0:00:49]} 30. c5 {[%clk 0:01:59]}  h5 {[%clk 0:00:47]} 31. Rh1 {[%clk 0:01:58]}  h4 {[%clk 0:00:46]} 32. b4 {[%clk 0:01:57]}  g4 {[%clk 0:00:43]} 33. a4 {[%clk 0:01:55]}  h3 {[%clk 0:00:20]} 34. Kc2 {[%clk 0:01:53]}  Kf7 {[%clk 0:00:19]} 35. Kc3 {[%clk 0:01:52]}  Kg6 {[%clk 0:00:19]} 36. Kc4 {[%clk 0:01:51]}  Kf5 {[%clk 0:00:19]} 37. b5 {[%clk 0:01:51]}  axb5+ {[%clk 0:00:18]} 38. axb5 {[%clk 0:01:52]}  Bg5 {[%clk 0:00:13]} 39. b6 {[%clk 0:01:50]}  Bxe3 {[%clk 0:00:13]} 40. fxe3 {[%clk 0:01:50]}  Rg6 {[%clk 0:00:08]} 41. b7 {[%clk 0:01:50]}  Rg8 {[%clk 0:00:08]} 42. c6 {[%clk 0:01:49]}  Ke6 {[%clk 0:00:08]} 43. Kc5 {[%clk 0:01:49]}  Ke7 {[%clk 0:00:07]} 44. c7 {[%clk 0:01:49]}  Rg5+ {[%clk 0:00:07]} 45. Kb6 {[%clk 0:01:48]}  Rg6+ {[%clk 0:00:07]} 46. Ka7 {[%clk 0:01:48]}  g3 {[%clk 0:00:07]} 47. c8=Q {[%clk 0:01:47]}  g2 {[%clk 0:00:07]} 48. Qxh3 {[%clk 0:01:28]}  gxh1=Q {[%clk 0:00:05]} 49. Qxh1 {[%clk 0:01:29]}  Re6 {[%clk 0:00:03]} 50. b8=Q {[%clk 0:01:27]}  Kf6 {[%clk 0:00:04]} 51. Qh6+ {[%clk 0:01:24]}  Kf5 {[%clk 0:00:02]} 52. Qbf4# {[%clk 0:01:23]} 1-0


[Site "https://www.chess.com"]

[Event "Titled Tuesday Blitz November 08 Late 2022"]
[White "Pakleza, Zbigniew"]
[Black "Moskvin, Anatoly"]
[WhiteFideId "1119290"]
[BlackFideId "24199990"]
[WhiteElo "2411"]
[BlackElo "2079"]
[Result "1-0"]
[Round "11"]
[TimeControl "180+1"]
[Date "2022.11.09"]
[WhiteClock "0:00:19"]
[BlackClock "0:00:29"]

1. d4 {[%clk 0:03:00]}  Nf6 {[%clk 0:02:59]} 2. Nf3 {[%clk 0:03:00]}  d5 {[%clk 0:02:58]} 3. Bf4 {[%clk 0:03:00]}  c5 {[%clk 0:02:58]} 4. c3 {[%clk 0:03:00]}  Qb6 {[%clk 0:02:57]} 5. Qb3 {[%clk 0:02:59]}  c4 {[%clk 0:02:57]} 6. Qc2 {[%clk 0:03:00]}  Nc6 {[%clk 0:02:57]} 7. Nbd2 {[%clk 0:03:00]}  g6 {[%clk 0:02:56]} 8. e4 {[%clk 0:03:00]}  Nxe4 {[%clk 0:02:35]} 9. Nxe4 {[%clk 0:02:51]}  dxe4 {[%clk 0:02:29]} 10. Nd2 {[%clk 0:02:50]}  Bf5 {[%clk 0:02:29]} 11. Nxc4 {[%clk 0:02:47]}  Qd8 {[%clk 0:02:29]} 12. Qb3 {[%clk 0:02:46]}  Qd7 {[%clk 0:02:12]} 13. d5 {[%clk 0:02:41]}  Qxd5 {[%clk 0:01:50]} 14. Nd6+ {[%clk 0:02:29]}  Qxd6 {[%clk 0:01:46]} 15. Bxd6 {[%clk 0:02:29]}  exd6 {[%clk 0:01:46]} 16. Qxb7 {[%clk 0:02:23]}  Rc8 {[%clk 0:01:47]} 17. Bb5 {[%clk 0:02:03]}  Bd7 {[%clk 0:01:47]} 18. Qxc8+ {[%clk 0:01:56]}  Bxc8 {[%clk 0:01:45]} 19. Bxc6+ {[%clk 0:01:57]}  Bd7 {[%clk 0:01:43]} 20. Bxe4 {[%clk 0:01:58]}  Bg7 {[%clk 0:01:35]} 21. O-O-O {[%clk 0:01:54]}  Ke7 {[%clk 0:01:23]} 22. Rhe1 {[%clk 0:01:54]}  Be6 {[%clk 0:01:23]} 23. Bd5 {[%clk 0:01:55]}  Rb8 {[%clk 0:01:22]} 24. Re4 {[%clk 0:01:47]}  Kd7 {[%clk 0:01:10]} 25. Ra4 {[%clk 0:01:25]}  Bf5 {[%clk 0:00:54]} 26. Rxa7+ {[%clk 0:01:22]}  Kd8 {[%clk 0:00:53]} 27. f4 {[%clk 0:01:10]}  Bh6 {[%clk 0:00:51]} 28. g3 {[%clk 0:01:10]}  g5 {[%clk 0:00:51]} 29. Bxf7 {[%clk 0:00:45]}  Rb6 {[%clk 0:00:50]} 30. Rd4 {[%clk 0:00:38]}  gxf4 {[%clk 0:00:46]} 31. gxf4 {[%clk 0:00:39]}  Bg7 {[%clk 0:00:41]} 32. Rb4 {[%clk 0:00:35]}  Rxb4 {[%clk 0:00:29]} 33. cxb4 {[%clk 0:00:36]}  Be4 {[%clk 0:00:28]} 34. Bd5 {[%clk 0:00:21]}  Bxd5 {[%clk 0:00:28]} 35. Rxg7 {[%clk 0:00:20]}  Be4 {[%clk 0:00:28]} 36. Kd2 {[%clk 0:00:19]}  Ke8 {[%clk 0:00:29]} 37. Ke3 {[%clk 0:00:20]}  Bb1 {[%clk 0:00:29]} 38. a4 {[%clk 0:00:20]}  Kf8 {[%clk 0:00:29]} 39. Rd7 {[%clk 0:00:19]} 1-0


[Site "https://www.chess.com"]

[Event "Titled Tuesday Blitz November 08 Late 2022"]
[White "Papayan, Oleg"]
[Black "Muhammad, Shahzeb"]
[WhiteFideId "4193911"]
[BlackFideId "7804806"]
[WhiteElo "2153"]
[BlackElo "2374"]
[Result "1-0"]
[Round "11"]
[TimeControl "180+1"]
[Date "2022.11.09"]
[WhiteClock "0:00:24"]
[BlackClock "0:00:27"]

1. e4 {[%clk 0:03:00]}  d5 {[%clk 0:02:59]} 2. exd5 {[%clk 0:03:01]}  Nf6 {[%clk 0:02:56]} 3. d4 {[%clk 0:03:00]}  Nxd5 {[%clk 0:02:49]} 4. c4 {[%clk 0:02:58]}  Nb6 {[%clk 0:02:49]} 5. c5 {[%clk 0:02:59]}  Nd5 {[%clk 0:02:48]} 6. Nf3 {[%clk 0:03:00]}  g6 {[%clk 0:02:48]} 7. Bc4 {[%clk 0:02:53]}  Bg7 {[%clk 0:02:49]} 8. Nc3 {[%clk 0:02:52]}  c6 {[%clk 0:02:50]} 9. O-O {[%clk 0:02:44]}  O-O {[%clk 0:02:49]} 10. Nxd5 {[%clk 0:02:43]}  cxd5 {[%clk 0:02:49]} 11. Bd3 {[%clk 0:02:43]}  Nc6 {[%clk 0:02:48]} 12. Be3 {[%clk 0:02:41]}  Bg4 {[%clk 0:02:47]} 13. Be2 {[%clk 0:02:42]}  e5 {[%clk 0:02:30]} 14. Nxe5 {[%clk 0:02:32]}  Bxe2 {[%clk 0:02:18]} 15. Nxc6 {[%clk 0:02:07]}  Bxd1 {[%clk 0:02:07]} 16. Nxd8 {[%clk 0:02:07]}  Be2 {[%clk 0:02:07]} 17. Nxb7 {[%clk 0:02:08]}  Bxf1 {[%clk 0:02:00]} 18. Kxf1 {[%clk 0:02:09]}  Rab8 {[%clk 0:01:58]} 19. c6 {[%clk 0:02:07]}  Rfc8 {[%clk 0:01:58]} 20. Rc1 {[%clk 0:02:02]}  Bf8 {[%clk 0:01:46]} 21. Bf4 {[%clk 0:01:59]}  Rxc6 {[%clk 0:01:41]} 22. Rxc6 {[%clk 0:01:55]}  Rxb7 {[%clk 0:01:41]} 23. b3 {[%clk 0:01:37]}  Bb4 {[%clk 0:01:24]} 24. Be5 {[%clk 0:01:34]}  Kf8 {[%clk 0:01:23]} 25. Ke2 {[%clk 0:01:17]}  Ke8 {[%clk 0:01:22]} 26. Kd3 {[%clk 0:01:15]}  Kd7 {[%clk 0:01:21]} 27. Rf6 {[%clk 0:01:15]}  Ke7 {[%clk 0:01:19]} 28. Ra6 {[%clk 0:01:15]}  Kd7 {[%clk 0:01:09]} 29. g4 {[%clk 0:01:11]}  Be1 {[%clk 0:01:04]} 30. f3 {[%clk 0:01:01]}  Bb4 {[%clk 0:01:04]} 31. a3 {[%clk 0:00:55]}  Be7 {[%clk 0:01:01]} 32. b4 {[%clk 0:00:55]}  Kc8 {[%clk 0:00:51]} 33. Ra5 {[%clk 0:00:50]}  Rd7 {[%clk 0:00:50]} 34. Rb5 {[%clk 0:00:48]}  Rd8 {[%clk 0:00:38]} 35. Rb8+ {[%clk 0:00:46]}  Kd7 {[%clk 0:00:38]} 36. Rb7+ {[%clk 0:00:47]}  Ke6 {[%clk 0:00:38]} 37. Rxa7 {[%clk 0:00:45]}  f6 {[%clk 0:00:38]} 38. Ra6+ {[%clk 0:00:39]}  Kf7 {[%clk 0:00:38]} 39. Bg3 {[%clk 0:00:34]}  Rc8 {[%clk 0:00:38]} 40. b5 {[%clk 0:00:32]}  Rc1 {[%clk 0:00:35]} 41. b6 {[%clk 0:00:28]}  Ke8 {[%clk 0:00:27]} 42. b7 {[%clk 0:00:24]} 1-0


[Site "https://www.chess.com"]

[Event "Titled Tuesday Blitz November 08 Late 2022"]
[White "Paravyan, David"]
[Black "Svane, Rasmus"]
[WhiteFideId "4194985"]
[BlackFideId "4657101"]
[WhiteElo "2546"]
[BlackElo "2674"]
[Result "1-0"]
[Round "11"]
[TimeControl "180+1"]
[Date "2022.11.09"]
[WhiteClock "0:00:08"]
[BlackClock "0:00:01"]

1. e4 {[%clk 0:03:00]}  c6 {[%clk 0:03:00]} 2. d4 {[%clk 0:03:00]}  d5 {[%clk 0:03:01]} 3. e5 {[%clk 0:03:01]}  Bf5 {[%clk 0:03:00]} 4. h4 {[%clk 0:03:02]}  h5 {[%clk 0:03:00]} 5. Bd3 {[%clk 0:03:02]}  Bxd3 {[%clk 0:03:01]} 6. Qxd3 {[%clk 0:03:03]}  Qa5+ {[%clk 0:03:01]} 7. Nc3 {[%clk 0:03:04]}  e6 {[%clk 0:02:59]} 8. Bg5 {[%clk 0:03:04]}  Qa6 {[%clk 0:02:21]} 9. Qh3 {[%clk 0:03:04]}  Qb6 {[%clk 0:02:20]} 10. Nge2 {[%clk 0:03:03]}  c5 {[%clk 0:02:19]} 11. Nxd5 {[%clk 0:03:02]}  Qa5+ {[%clk 0:02:07]} 12. Ndc3 {[%clk 0:02:40]}  cxd4 {[%clk 0:02:04]} 13. O-O-O {[%clk 0:02:27]}  dxc3 {[%clk 0:01:29]} 14. Rd8+ {[%clk 0:02:27]}  Qxd8 {[%clk 0:01:30]} 15. Bxd8 {[%clk 0:02:28]}  cxb2+ {[%clk 0:01:30]} 16. Kb1 {[%clk 0:02:28]}  Nc6 {[%clk 0:01:04]} 17. Bg5 {[%clk 0:02:28]}  Be7 {[%clk 0:00:57]} 18. Qb3 {[%clk 0:02:28]}  Rb8 {[%clk 0:00:56]} 19. Nf4 {[%clk 0:02:17]}  Bxg5 {[%clk 0:00:38]} 20. hxg5 {[%clk 0:02:18]}  g6 {[%clk 0:00:39]} 21. Nd3 {[%clk 0:02:02]}  Nge7 {[%clk 0:00:38]} 22. Nc5 {[%clk 0:01:59]}  O-O {[%clk 0:00:31]} 23. Nd7 {[%clk 0:01:58]}  Kg7 {[%clk 0:00:28]} 24. g4 {[%clk 0:01:56]}  hxg4 {[%clk 0:00:24]} 25. Nxf8 {[%clk 0:01:23]}  Rxf8 {[%clk 0:00:25]} 26. Qg3 {[%clk 0:01:08]}  Nf5 {[%clk 0:00:09]} 27. Qh2 {[%clk 0:01:08]}  Rg8 {[%clk 0:00:09]} 28. Qh7+ {[%clk 0:01:06]}  Kf8 {[%clk 0:00:09]} 29. Rd1 {[%clk 0:01:05]}  Rg7 {[%clk 0:00:10]} 30. Qh8+ {[%clk 0:01:04]}  Rg8 {[%clk 0:00:10]} 31. Qf6 {[%clk 0:01:00]}  Ke8 {[%clk 0:00:11]} 32. Rh1 {[%clk 0:00:40]}  Nfe7 {[%clk 0:00:09]} 33. Rh8 {[%clk 0:00:40]}  Rxh8 {[%clk 0:00:10]} 34. Qxh8+ {[%clk 0:00:41]}  Kd7 {[%clk 0:00:10]} 35. Kxb2 {[%clk 0:00:40]}  Nf5 {[%clk 0:00:07]} 36. c3 {[%clk 0:00:33]}  g3 {[%clk 0:00:05]} 37. fxg3 {[%clk 0:00:34]}  Nxg3 {[%clk 0:00:06]} 38. Qf8 {[%clk 0:00:29]}  Nxe5 {[%clk 0:00:03]} 39. Qb8 {[%clk 0:00:30]}  Nc4+ {[%clk 0:00:02]} 40. Kb3 {[%clk 0:00:29]}  Nd6 {[%clk 0:00:03]} 41. Qxa7 {[%clk 0:00:26]}  Nge4 {[%clk 0:00:04]} 42. Qe3 {[%clk 0:00:20]}  Kc6 {[%clk 0:00:04]} 43. Kb4 {[%clk 0:00:14]}  b6 {[%clk 0:00:02]} 44. a4 {[%clk 0:00:14]}  Nc5 {[%clk 0:00:02]} 45. Qf3+ {[%clk 0:00:14]}  Kc7 {[%clk 0:00:02]} 46. a5 {[%clk 0:00:15]}  Na6+ {[%clk 0:00:03]} 47. Kb3 {[%clk 0:00:12]}  Nc5+ {[%clk 0:00:03]} 48. Kc2 {[%clk 0:00:11]}  bxa5 {[%clk 0:00:03]} 49. Qa8 {[%clk 0:00:11]}  a4 {[%clk 0:00:04]} 50. Qa7+ {[%clk 0:00:11]}  Kc6 {[%clk 0:00:03]} 51. Kb1 {[%clk 0:00:09]}  Kd5 {[%clk 0:00:03]} 52. Kc2 {[%clk 0:00:09]}  Kc6 {[%clk 0:00:02]} 53. Qa8+ {[%clk 0:00:09]}  Kc7 {[%clk 0:00:02]} 54. Qf8 {[%clk 0:00:09]}  Kd7 {[%clk 0:00:02]} 55. Qb8 {[%clk 0:00:09]}  Nce4 {[%clk 0:00:02]} 56. Qa7+ {[%clk 0:00:09]}  Kd8 {[%clk 0:00:02]} 57. Qa5+ {[%clk 0:00:09]}  Ke7 {[%clk 0:00:02]} 58. Qa7+ {[%clk 0:00:09]}  Ke8 {[%clk 0:00:02]} 59. Qxa4+ {[%clk 0:00:09]}  Kf8 {[%clk 0:00:03]} 60. c4 {[%clk 0:00:08]}  Nxg5 {[%clk 0:00:01]} 61. c5 {[%clk 0:00:08]}  Nf5 {[%clk 0:00:02]} 62. c6 {[%clk 0:00:08]}  Ne7 {[%clk 0:00:02]} 63. c7 {[%clk 0:00:08]}  Nf3 {[%clk 0:00:01]} 64. Qe4 {[%clk 0:00:08]}  Ng5 {[%clk 0:00:01]} 65. Qb4 {[%clk 0:00:08]} 1-0


[Site "https://www.chess.com"]

[Event "Titled Tuesday Blitz November 08 Late 2022"]
[White "Preotu, Razvan"]
[Black "Zhigalko, Sergei"]
[WhiteFideId "2613280"]
[BlackFideId "13502956"]
[WhiteElo "2407"]
[BlackElo "2662"]
[Result "0-1"]
[Round "11"]
[TimeControl "180+1"]
[Date "2022.11.09"]
[WhiteClock "0:00:22"]
[BlackClock "0:02:03"]

1. e4 {[%clk 0:03:00]}  c5 {[%clk 0:03:00]} 2. Nf3 {[%clk 0:03:00]}  Nc6 {[%clk 0:03:00]} 3. Bb5 {[%clk 0:02:58]}  Nf6 {[%clk 0:03:01]} 4. Nc3 {[%clk 0:02:57]}  Qc7 {[%clk 0:03:01]} 5. O-O {[%clk 0:02:58]}  Nd4 {[%clk 0:03:02]} 6. Re1 {[%clk 0:02:56]}  a6 {[%clk 0:03:02]} 7. Bf1 {[%clk 0:02:56]}  e5 {[%clk 0:03:03]} 8. Nd5 {[%clk 0:02:55]}  Nxd5 {[%clk 0:03:02]} 9. exd5 {[%clk 0:02:56]}  d6 {[%clk 0:02:59]} 10. c3 {[%clk 0:02:47]}  Nxf3+ {[%clk 0:02:59]} 11. Qxf3 {[%clk 0:02:48]}  Be7 {[%clk 0:02:59]} 12. d4 {[%clk 0:02:47]}  O-O {[%clk 0:03:00]} 13. dxe5 {[%clk 0:02:40]}  dxe5 {[%clk 0:03:01]} 14. Qg3 {[%clk 0:02:31]}  Bd6 {[%clk 0:03:01]} 15. Qh4 {[%clk 0:01:51]}  f5 {[%clk 0:02:54]} 16. f3 {[%clk 0:01:51]}  Bd7 {[%clk 0:02:48]} 17. c4 {[%clk 0:01:51]}  Rae8 {[%clk 0:02:44]} 18. Bd2 {[%clk 0:01:51]}  e4 {[%clk 0:02:38]} 19. fxe4 {[%clk 0:01:50]}  fxe4 {[%clk 0:02:38]} 20. Be3 {[%clk 0:00:52]}  Be5 {[%clk 0:02:04]} 21. Rab1 {[%clk 0:00:48]}  Bd4 {[%clk 0:02:05]} 22. Bxd4 {[%clk 0:00:44]}  cxd4 {[%clk 0:02:06]} 23. Rxe4 {[%clk 0:00:44]}  Rxe4 {[%clk 0:02:06]} 24. Qxe4 {[%clk 0:00:45]}  Bf5 {[%clk 0:02:07]} 25. Qe1 {[%clk 0:00:37]}  Bxb1 {[%clk 0:02:05]} 26. Qxb1 {[%clk 0:00:38]}  Qf4 {[%clk 0:02:04]} 27. Bd3 {[%clk 0:00:35]}  Qf2+ {[%clk 0:02:03]} 28. Kh1 {[%clk 0:00:35]}  Re8 {[%clk 0:02:03]} 29. Bxh7+ {[%clk 0:00:22]}  Kh8 {[%clk 0:02:03]} 0-1


[Site "https://www.chess.com"]

[Event "Titled Tuesday Blitz November 08 Late 2022"]
[White "Ramirez, Maria Eugenia"]
[Black "Capp, Stephen"]
[WhiteFideId "3301680"]
[BlackFideId "2027089"]
[WhiteElo "1941"]
[BlackElo "2179"]
[Result "1-0"]
[Round "11"]
[TimeControl "180+1"]
[Date "2022.11.09"]
[WhiteClock "0:00:10"]
[BlackClock "0:00:01"]

1. e4 {[%clk 0:03:00]}  e5 {[%clk 0:02:58]} 2. Nf3 {[%clk 0:03:00]}  d5 {[%clk 0:02:57]} 3. exd5 {[%clk 0:02:59]}  Bd6 {[%clk 0:02:52]} 4. d4 {[%clk 0:02:49]}  e4 {[%clk 0:02:51]} 5. Ne5 {[%clk 0:02:49]}  Nf6 {[%clk 0:02:51]} 6. c4 {[%clk 0:02:45]}  Qe7 {[%clk 0:02:50]} 7. Nc3 {[%clk 0:02:28]}  Bxe5 {[%clk 0:02:47]} 8. dxe5 {[%clk 0:02:28]}  Qxe5 {[%clk 0:02:47]} 9. Be2 {[%clk 0:02:28]}  O-O {[%clk 0:02:44]} 10. Be3 {[%clk 0:02:28]}  Nbd7 {[%clk 0:02:40]} 11. Bd4 {[%clk 0:02:26]}  Qg5 {[%clk 0:02:36]} 12. g3 {[%clk 0:02:24]}  Re8 {[%clk 0:02:16]} 13. Qd2 {[%clk 0:02:23]}  Qg6 {[%clk 0:02:06]} 14. O-O-O {[%clk 0:02:21]}  Ne5 {[%clk 0:02:02]} 15. h4 {[%clk 0:02:17]}  h5 {[%clk 0:01:52]} 16. Qf4 {[%clk 0:02:14]}  Nf3 {[%clk 0:01:33]} 17. Bxf3 {[%clk 0:02:05]}  exf3 {[%clk 0:01:32]} 18. Rhe1 {[%clk 0:02:00]}  Bf5 {[%clk 0:01:26]} 19. Re5 {[%clk 0:01:39]}  Rxe5 {[%clk 0:01:23]} 20. Bxe5 {[%clk 0:01:38]}  Ng4 {[%clk 0:01:17]} 21. Bd4 {[%clk 0:01:32]}  Re8 {[%clk 0:01:10]} 22. Qxf3 {[%clk 0:01:31]}  a6 {[%clk 0:00:53]} 23. Be3 {[%clk 0:01:19]}  b5 {[%clk 0:00:52]} 24. cxb5 {[%clk 0:01:15]}  axb5 {[%clk 0:00:52]} 25. Nxb5 {[%clk 0:01:08]}  Bb1 {[%clk 0:00:43]} 26. Na3 {[%clk 0:01:04]}  Be4 {[%clk 0:00:40]} 27. Qe2 {[%clk 0:00:51]}  Qd6 {[%clk 0:00:34]} 28. Nc4 {[%clk 0:00:42]}  Qa6 {[%clk 0:00:28]} 29. b3 {[%clk 0:00:41]}  Rb8 {[%clk 0:00:21]} 30. Rd4 {[%clk 0:00:37]}  f5 {[%clk 0:00:18]} 31. f3 {[%clk 0:00:30]}  Rxb3 {[%clk 0:00:17]} 32. axb3 {[%clk 0:00:22]}  Qa1+ {[%clk 0:00:15]} 33. Kd2 {[%clk 0:00:22]}  Qa2+ {[%clk 0:00:14]} 34. Ke1 {[%clk 0:00:22]}  Qb1+ {[%clk 0:00:13]} 35. Rd1 {[%clk 0:00:21]}  Qxb3 {[%clk 0:00:12]} 36. fxg4 {[%clk 0:00:20]}  hxg4 {[%clk 0:00:10]} 37. Nd2 {[%clk 0:00:19]}  Qc3 {[%clk 0:00:08]} 38. Bf4 {[%clk 0:00:17]}  Bf3 {[%clk 0:00:09]} 39. Qe3 {[%clk 0:00:13]}  Qc2 {[%clk 0:00:06]} 40. Rb1 {[%clk 0:00:11]}  Qxb1+ {[%clk 0:00:02]} 41. Nxb1 {[%clk 0:00:10]}  Bxd5 {[%clk 0:00:01]} 42. Nd2 {[%clk 0:00:10]}  Kh7 {[%clk 0:00:01]} 43. Qe5 {[%clk 0:00:10]}  Bg2 {[%clk 0:00:01]} 44. Qxf5+ {[%clk 0:00:10]} 1-0


[Site "https://www.chess.com"]

[Event "Titled Tuesday Blitz November 08 Late 2022"]
[White "Rodriguez Santiago, Jaime"]
[Black "Bilan, Danila"]
[WhiteFideId "3100898"]
[BlackFideId "24161918"]
[WhiteElo "2025"]
[BlackElo "2173"]
[Result "1-0"]
[Round "11"]
[TimeControl "180+1"]
[Date "2022.11.09"]
[WhiteClock "0:00:21"]
[BlackClock "0:00:01"]

1. c4 {[%clk 0:03:00]}  Nf6 {[%clk 0:02:54]} 2. Nc3 {[%clk 0:03:00]}  c6 {[%clk 0:02:53]} 3. d4 {[%clk 0:02:56]}  d5 {[%clk 0:02:52]} 4. cxd5 {[%clk 0:02:57]}  cxd5 {[%clk 0:02:52]} 5. Bf4 {[%clk 0:02:57]}  a6 {[%clk 0:02:53]} 6. e3 {[%clk 0:02:56]}  Nc6 {[%clk 0:02:53]} 7. Qb3 {[%clk 0:02:55]}  e6 {[%clk 0:02:52]} 8. Bd3 {[%clk 0:02:51]}  Bd6 {[%clk 0:02:52]} 9. Bxd6 {[%clk 0:02:50]}  Qxd6 {[%clk 0:02:53]} 10. f4 {[%clk 0:02:51]}  O-O {[%clk 0:02:50]} 11. Nf3 {[%clk 0:02:51]}  b5 {[%clk 0:02:50]} 12. O-O {[%clk 0:02:42]}  Na5 {[%clk 0:02:50]} 13. Qc2 {[%clk 0:02:39]}  Nc4 {[%clk 0:02:50]} 14. Rae1 {[%clk 0:02:38]}  Bb7 {[%clk 0:02:47]} 15. Ne5 {[%clk 0:02:38]}  Rac8 {[%clk 0:02:44]} 16. Qe2 {[%clk 0:02:34]}  Ne4 {[%clk 0:02:26]} 17. Nxe4 {[%clk 0:02:21]}  dxe4 {[%clk 0:02:24]} 18. Bb1 {[%clk 0:02:21]}  f6 {[%clk 0:02:12]} 19. Nxc4 {[%clk 0:02:12]}  Rxc4 {[%clk 0:02:13]} 20. a3 {[%clk 0:02:07]}  Rfc8 {[%clk 0:02:06]} 21. g4 {[%clk 0:02:04]}  Bd5 {[%clk 0:01:52]} 22. Rf2 {[%clk 0:02:02]}  e5 {[%clk 0:01:02]} 23. dxe5 {[%clk 0:01:44]}  fxe5 {[%clk 0:01:02]} 24. f5 {[%clk 0:01:45]}  Rc1 {[%clk 0:00:54]} 25. Qd2 {[%clk 0:01:24]}  Rxe1+ {[%clk 0:00:43]} 26. Qxe1 {[%clk 0:01:23]}  Qh6 {[%clk 0:00:42]} 27. Qd2 {[%clk 0:01:11]}  Bf7 {[%clk 0:00:42]} 28. Bxe4 {[%clk 0:01:03]}  Qh4 {[%clk 0:00:42]} 29. Qe2 {[%clk 0:00:55]}  Rc1+ {[%clk 0:00:38]} 30. Kg2 {[%clk 0:00:55]}  Bc4 {[%clk 0:00:36]} 31. Qf3 {[%clk 0:00:53]}  Qd8 {[%clk 0:00:11]} 32. f6 {[%clk 0:00:42]}  gxf6 {[%clk 0:00:07]} 33. Qf5 {[%clk 0:00:38]}  Qe7 {[%clk 0:00:04]} 34. g5 {[%clk 0:00:33]}  Qg7 {[%clk 0:00:03]} 35. h4 {[%clk 0:00:28]}  fxg5 {[%clk 0:00:03]} 36. hxg5 {[%clk 0:00:28]}  Bf7 {[%clk 0:00:02]} 37. Rd2 {[%clk 0:00:22]}  Qf8 {[%clk 0:00:01]} 38. Qxh7# {[%clk 0:00:21]} 1-0


[Site "https://www.chess.com"]